fUST/lending_fUST_20250803
["ID","MTS","AMOUNT","RATE_DAILY","PERIOD"]
[377053472,1754224232251,-41.28227407,0.00023758,2]
[377053473,1754224232263,-323.53238495,0.00023758,2]
[377053474,1754224232274,-635.18534098,0.00023758,2]
[377053475,1754224232283,-500.0,0.00023867,2]
[377053476,1754224232292,-2498.83304784,0.000239,10]
[377053477,1754224232302,-3447.62943105,0.00023943,2]
[377053478,1754224232311,-200.0,0.00023943,10]
[377053479,1754224232320,-200.0,0.00023943,10]
[377053480,1754224232329,-1200.0,0.00023956,2]
[377053481,1754224232338,-154.87362223,0.00023958,2]
[377053482,1754224232347,-618.87499444,0.00023958,2]
[377053483,1754224232356,-300.0,0.00023999,2]
[377053484,1754224232365,-1697.65665806,0.00024,2]
[377053485,1754224232375,-724.82693704,0.00024,2]
[377053487,1754224232384,-345.65,0.00024,2]
[377053488,1754224232394,-778.79915041,0.00024039,2]
[377053489,1754224232403,-151.0,0.00024039,7]
[377053490,1754224232413,-12433.6849358,0.00024039,2]
[377053491,1754224232422,-190.735562,0.00024043,2]
[377053492,1754224232431,-4429.6694905,0.00024043,2]
[377053493,1754224232440,-151.0,0.00024043,7]
[377053494,1754224232450,-151.0,0.00024043,7]
[377053495,1754224232460,-151.0,0.00024043,7]
[377053496,1754224232473,-151.0,0.00024043,7]
[377053497,1754224232482,-151.0,0.00024043,7]
[377053498,1754224232492,-151.0,0.00024043,7]
[377053499,1754224232503,-151.0,0.00024043,7]
[377053500,1754224232512,-151.0,0.00024043,7]
[377053501,1754224232521,-151.0,0.00024043,7]
[377053502,1754224232531,-2498.83304764,0.00024452,11]
[377053503,1754224232541,-150.0,0.00024912,2]
[377053505,1754224232551,-27003.22851144,0.00025,4]
[377053507,1754224232563,-476.98293524,0.00025,4]
[377053508,1754224232572,-345.65,0.00025,7]
[377053509,1754224232581,-151.0,0.00025,7]
[377053510,1754224232590,-2424.82644211,0.00025003,12]
[377053511,1754224232602,-74.00660553,0.00025003,12]
[377053512,1754224232612,-160.0,0.00025006,2]
[377053513,1754224232621,-243.13681276,0.00025027,2]
[377053514,1754224232630,-501.90167693,0.00025073,2]
[377053515,1754224232640,-500.0,0.00025073,2]
[377053516,1754224232650,-500.0,0.00025073,2]
[377053518,1754224232659,-500.0,0.00025073,2]
[377053520,1754224232668,-151.0,0.00025073,7]
[377053522,1754224232678,-151.71875,0.00025073,7]
[377053524,1754224232688,-240.519145,0.00025073,7]
[377053526,1754224232697,-151.0,0.00025073,7]
[377053528,1754224232707,-151.0,0.00025073,7]
[377053530,1754224232717,-151.944518,0.00025073,7]
[377053532,1754224232726,-151.0,0.00025073,7]
[377053534,1754224232736,-151.944518,0.00025073,7]
[377053536,1754224232745,-151.0,0.00025073,7]
[377053538,1754224232754,-151.0,0.00025073,7]
[377053540,1754224232764,-153.587101,0.00025073,7]
[377053542,1754224232773,-151.0,0.00025073,7]
[377053544,1754224232782,-215.815168,0.00025073,7]
[377053546,1754224232791,-201.425766,0.00025073,7]
[377053548,1754224232801,-24861.320631,0.00025077,2]
[377053550,1754224232810,-151.0,0.00025077,7]
[377053552,1754224232819,-151.0,0.00025077,7]
[377053553,1754224232828,-151.0,0.00025077,7]
[377053554,1754224232838,-151.0,0.00025077,7]
[377053555,1754224232847,-151.731813,0.00025077,7]
[377053558,1754224232867,-151.0,0.00025077,7]
[377053560,1754224232876,-283.854383,0.00025077,7]
[377053562,1754224232886,-151.944518,0.00025077,7]
[377053564,1754224232896,-151.944518,0.00025077,7]
[377053566,1754224232905,-151.0,0.00025077,7]
[377053568,1754224232915,-151.0,0.00025077,7]
[377053570,1754224232924,-151.0,0.00025077,7]
[377053572,1754224232933,-200.0,0.00025154,15]
[377053574,1754224232943,-300.0,0.00025154,15]
[377053576,1754224232953,-151.0,0.00025168,7]
[377053577,1754224232962,-151.944518,0.00025168,7]
[377053578,1754224232972,-151.944518,0.00025168,7]
[377053580,1754224232982,-151.0,0.00025219,7]
[377053582,1754224232991,-151.0,0.00025219,7]
[377053585,1754224233001,-151.0,0.00025268,7]
[377053588,1754224233011,-151.0,0.00025268,7]
[377053590,1754224233021,-151.0,0.00025268,7]
[377053592,1754224233031,-151.0,0.00025268,7]
[377053594,1754224233041,-151.0,0.00025268,7]
[377053595,1754224233051,-151.0,0.00025268,7]
[377053596,1754224233061,-151.0,0.00025268,7]
[377053597,1754224233071,-151.0,0.00025268,7]
[377053598,1754224233081,-151.0,0.00025268,7]
[377053599,1754224233090,-225.565189,0.00025268,7]
[377053600,1754224233100,-151.0,0.00025268,7]
[377053601,1754224233109,-151.0,0.00025268,7]
[377053602,1754224233119,-151.0,0.00025268,7]
[377053603,1754224233129,-151.0,0.00025352,7]
[377053604,1754224233140,-180.73,0.00025549,7]
[377053605,1754224233149,-2498.83304764,0.00025555,13]
[377053606,1754224233158,-180.73,0.00025649,7]
[377053607,1754224233168,-329.78,0.00025697,2]
[377053608,1754224233178,-180.73,0.00025749,7]
[377053609,1754224233187,-151.944518,0.00025849,7]
[377053610,1754224233197,-151.944518,0.00025849,7]
[377053611,1754224233206,-180.74,0.00025849,7]
[377053612,1754224233217,-151.0,0.000259,7]
[377053613,1754224233226,-151.0,0.000259,7]
[377053614,1754224233235,-151.0,0.000259,7]
[377053615,1754224233245,-151.0,0.000259,7]
[377053616,1754224233255,-151.0,0.000259,7]
[377053617,1754224233265,-151.0,0.000259,7]
[377053618,1754224233275,-151.0,0.000259,7]
[377053619,1754224233284,-151.0,0.000259,7]
[377053620,1754224233294,-151.0,0.000259,7]
[377053621,1754224233303,-420.0,0.00026026,2]
[377053622,1754224233313,-2498.83304764,0.00026107,14]
[377053623,1754224233322,-345.65,0.00026109,7]
[377053624,1754224233332,-151.0,0.00026276,7]
[377053625,1754224233341,-151.0,0.00026291,7]
[377053626,1754224233350,-151.0,0.00026383,7]
[377053627,1754224233360,-153.028208,0.00026383,7]
[377053628,1754224233369,-229.666824,0.00026383,7]
[377053629,1754224233379,-151.0,0.00026383,7]
[377053630,1754224233389,-151.0,0.00026383,7]
[377053631,1754224233399,-151.0,0.00026383,7]
[377053632,1754224233408,-151.0,0.00026383,7]
[377053633,1754224233418,-151.0,0.00026383,7]
[377053634,1754224233427,-460.95174316,0.00026383,7]
[377053635,1754224233437,-151.944518,0.00026383,7]
[377053636,1754224233447,-151.944518,0.00026383,7]
[377053637,1754224233456,-151.0,0.00026383,7]
[377053638,1754224233469,-250.0,0.00026626,2]
[377053639,1754224233479,-2498.83304764,0.00026659,15]
[377053640,1754224233489,-337.503316,0.000267,2]
[377053641,1754224233498,-500.24555011,0.000267,2]
[377053642,1754224233510,-500.0,0.000267,2]
[377053643,1754224233520,-500.0,0.000267,2]
[377053644,1754224233529,-160.0,0.00026823,2]
[377053645,1754224233538,-231.62108626,0.00026825,2]
[377053646,1754224233549,-160.0,0.00026825,2]
[377053647,1754224233559,-6646.75697291,0.00026839,2]
[377053648,1754224233573,-461.4225,0.00026839,2]
[377053649,1754224233589,-4060.91967154,0.00026839,2]
[377053657,1754224238119,-451.93389652,0.00025554,2]
[377053658,1754224238129,-57.38622935,0.00025554,2]
[377053870,1754224240196,-554.33952685,0.00025554,2]
[377053872,1754224240206,-500.0,0.00025554,2]
[377053874,1754224240216,-339.07103565,0.00025554,2]
[377053876,1754224240225,-500.0,0.00025554,2]
[377053878,1754224240234,-446.60323558,0.00025554,2]
[377053891,1754224240243,-151.0,0.00026839,7]
[377053894,1754224240366,-265.62074,0.00026839,7]
[377053896,1754224240376,-151.0,0.00026839,7]
[377053898,1754224240385,-151.0,0.00026839,7]
[377053900,1754224240397,-262.392376,0.00026839,7]
[377053902,1754224240407,-151.0,0.00026839,7]
[377053904,1754224240417,-151.944518,0.00026839,7]
[377053906,1754224240426,-151.944518,0.00026839,7]
[377053908,1754224240436,-151.0,0.0002686,7]
[377053910,1754224240446,-151.0,0.00026865,7]
[377053912,1754224240455,-241.683384,0.00026865,7]
[377053914,1754224240467,-275.37429,0.00026865,7]
[377053916,1754224240476,-527.12062288,0.00026865,7]
[377053918,1754224240486,-527.12062288,0.00026962,2]
[377053920,1754224240495,-841.87402298,0.00026962,2]
[377053922,1754224240504,-215.12253551,0.00026962,2]
[377053924,1754224240514,-160.0,0.00026962,2]
[377053925,1754224240524,-216.32054205,0.00026962,2]
[377053927,1754224240533,-460.95174316,0.00026962,2]
[377053930,1754224240544,-151.944518,0.00026962,7]
[377053932,1754224240555,-151.944518,0.00026962,7]
[377053934,1754224240564,-162.01882626,0.00027105,2]
[377053936,1754224240576,-345.65,0.00027179,7]
[377053938,1754224240586,-2498.83304764,0.0002721,16]
[377053940,1754224240595,-265.51548543,0.00027248,2]
[377053942,1754224240605,-3999.59765669,0.00027292,3]
[377053944,1754224240614,-151.944518,0.00027292,7]
[377053946,1754224240623,-151.944518,0.00027292,7]
[377053948,1754224240632,-151.0,0.00027348,7]
[377053950,1754224240641,-260.0,0.00027371,2]
[377053952,1754224240652,-200.0,0.00027592,15]
[377053954,1754224240662,-200.0,0.00027592,15]
[377053956,1754224240671,-300.0,0.00027592,15]
[377053958,1754224240680,-2498.83304764,0.00027762,17]
[377053960,1754224240690,-2530.19325866,0.00027785,2]
[377054507,1754224246158,-270.1,0.00025554,2]
[377056861,1754224638931,1199.77902028,0.00023062,2]
[377056862,1754224638955,3800.22097972,0.00023062,2]
[377056863,1754224655178,5000.0,0.00023062,2]
[377056867,1754224985648,269.0,0.00030137,120]
[377056868,1754224987714,1704.76878642,0.00023062,2]
[377056869,1754225156103,-986.294456,0.00023254,2]
[377056870,1754225156124,-710.99536811,0.00023303,2]
[377056871,1754225196818,779.72156165,0.00021154,2]
[377056872,1754225202181,1300.24313477,0.00023,2]
[377056873,1754225207092,-182.25265521,0.00023303,2]
[377056874,1754225209384,2135.3911353,0.00023062,2]
[377056875,1754225225299,2060.7690298,0.00023062,2]
[377056876,1754225233304,436.3205974,0.0002276,2]
[377056877,1754225234723,1745.28238962,0.0002276,2]
[377056878,1754225236443,3922.95849126,0.0002276,2]
[377056879,1754225240931,5000.0,0.00023062,2]
[377056880,1754225258694,5000.0,0.00023062,2]
[377056881,1754225266640,5000.0,0.00023062,2]
[377056882,1754225275359,1882.30450815,0.00023062,2]
[377056883,1754225284345,232.01938591,0.00023062,2]
[377056884,1754225284369,4767.98061409,0.00023062,2]
[377056885,1754225318321,35232.01938591,0.00023012,2]
[377056886,1754225318344,33750.45739509,0.00023012,2]
[377056888,1754225335664,162.007882,0.00013699,2]
[377056889,1754225335876,162.007882,0.00021404,2]
[377056890,1754225371850,190.735562,0.00023021,2]
[377056891,1754225373942,876.77369194,0.00030136,120]
[377056912,1754225432470,-106.75197668,0.00023303,2]
[377056914,1754225432480,-329.97998155,0.00023305,2]
[377056917,1754225432492,-1747.33515465,0.00023305,2]
[377056919,1754225432501,-159.633041,0.00023372,2]
[377056921,1754225432511,-5084.6851988,0.00023823,2]
[377056923,1754225432521,-300.0,0.00023899,2]
[377056925,1754225432530,-1200.0,0.00023899,2]
[377056927,1754225432539,-200.0,0.000239,10]
[377056928,1754225432548,-1953.79168196,0.000239,10]
[377056929,1754225432557,-1200.0,0.00023957,2]
[377056930,1754225432568,-189.92284656,0.00024204,2]
[377056931,1754225432578,-3220.39822204,0.00024235,2]
[377056932,1754225432587,-190.441809,0.00024335,2]
[377056933,1754225432596,-492.40950771,0.0002466,2]
[377056934,1754225432605,-220.3946588,0.00024672,2]
[377056935,1754225432614,-500.0,0.00024673,2]
[377056936,1754225432624,-151.0,0.00024673,7]
[377056937,1754225432633,-151.0,0.00024673,7]
[377056938,1754225432642,-151.0,0.00024673,7]
[377056939,1754225432651,-152.537099,0.00024673,7]
[377056940,1754225432660,-151.0,0.00024673,7]
[377056941,1754225432669,-151.0,0.00024673,7]
[377056942,1754225432678,-151.0,0.00024673,7]
[377056943,1754225432687,-151.0,0.00024673,7]
[377056944,1754225432696,-151.0,0.00024673,7]
[377056945,1754225432705,-151.0,0.00024673,7]
[377056946,1754225432714,-1378.92,0.00024674,2]
[377056947,1754225432723,-151.0,0.00024675,7]
[377056948,1754225432732,-151.0,0.00024675,7]
[377056949,1754225432742,-2928.58618643,0.000249,2]
[377056950,1754225432751,-500.0,0.00025073,2]
[377056951,1754225432760,-528.82260462,0.00025073,2]
[377056952,1754225432769,-151.0,0.00025091,7]
[377056953,1754225432778,-151.0,0.00025091,7]
[377056954,1754225432787,-151.0,0.00025091,7]
[377056955,1754225432796,-200.0,0.00025094,15]
[377056956,1754225432805,-300.0,0.00025094,15]
[377056957,1754225432814,-467.53,0.000251,7]
[377056958,1754225432823,-151.0,0.00025218,7]
[377056959,1754225432832,-151.0,0.00025218,7]
[377056960,1754225432841,-151.0,0.00025218,7]
[377056961,1754225432850,-151.0,0.00025218,7]
[377056962,1754225432859,-151.0,0.00025218,7]
[377056963,1754225432869,-151.0,0.00025218,7]
[377056964,1754225432878,-151.0,0.00025218,7]
[377056965,1754225432887,-151.0,0.00025218,7]
[377056966,1754225432896,-152.196196,0.00025218,7]
[377056967,1754225432915,-269.022027,0.00025218,7]
[377056968,1754225432928,-151.0,0.00025218,7]
[377056969,1754225432938,-151.0,0.00025218,7]
[377056970,1754225432948,-151.0,0.00025218,7]
[377056971,1754225432957,-151.0,0.00025218,7]
[377056972,1754225432967,-151.0,0.00025219,7]
[377056974,1754225432976,-500.0,0.00025233,2]
[377056976,1754225432985,-160.0,0.0002525,2]
[377056978,1754225432995,-500.0,0.00025273,2]
[377056980,1754225433004,-503.78864115,0.00025273,2]
[377056982,1754225433013,-500.0,0.00025273,2]
[377056984,1754225433023,-500.48698167,0.00025273,2]
[377056986,1754225433032,-491.8380123,0.00025273,2]
[377056988,1754225433041,-151.0,0.00025273,7]
[377056990,1754225433050,-151.0,0.00025273,7]
[377056992,1754225433060,-151.0,0.00025273,7]
[377056994,1754225433070,-151.0,0.00025571,7]
[377056996,1754225433080,-151.0,0.00025573,7]
[377056998,1754225433089,-1000.0,0.00025621,2]
[377057000,1754225433099,-241.84,0.00025637,2]
[377057002,1754225433108,-260.0,0.00025798,2]
[377057004,1754225433117,-500.60236846,0.00025821,2]
[377057005,1754225433127,-151.0,0.00025821,7]
[377057006,1754225433136,-151.0,0.00025821,7]
[377057007,1754225433145,-420.0,0.0002592,2]
[377057008,1754225433155,-151.0,0.00025981,7]
[377057009,1754225433164,-1378.92,0.00026044,4]
[377057010,1754225433174,-779.72156165,0.00026154,2]
[377057012,1754225433183,-1025.15,0.00026158,3]
[377057014,1754225433192,-782.35,0.00026158,3]
[377057016,1754225433201,-1500.0,0.00026168,2]
[377057018,1754225433211,-2928.58618643,0.00026324,2]
[377057020,1754225433221,-391.18,0.00026334,3]
[377057022,1754225433230,-195.59,0.00026334,3]
[377057024,1754225433240,-586.78,0.00026334,3]
[377057026,1754225433249,-360.0,0.00026346,2]
[377057027,1754225433258,-151.0,0.00026588,7]
[377057028,1754225433267,-216.32054205,0.00026698,2]
[377057030,1754225433277,-527.12062288,0.00026698,2]
[377057031,1754225433286,-312.16666667,0.00026698,2]
[377057032,1754225433295,-841.87402298,0.00026698,2]
[377057033,1754225433305,-836.1613536,0.0002671,2]
[377057034,1754225433315,-151.0,0.00026716,7]
[377057035,1754225433324,-973.3304,0.00026716,2]
[377057036,1754225433333,-2431.47743626,0.00026746,2]
[377057037,1754225433358,-10217.87008013,0.00026746,2]
[377057038,1754225433367,-160.0,0.00026746,2]
[377057039,1754225433377,-160.0,0.00026746,2]
[377057040,1754225433386,-160.0,0.00026746,2]
[377057041,1754225433396,-231.62108626,0.00026746,2]
[377057042,1754225433405,-215.12253551,0.00026746,2]
[377057043,1754225433414,-160.0,0.00026746,2]
[377057044,1754225433424,-500.0,0.00026773,2]
[377057045,1754225433433,-500.0,0.00026773,2]
[377057046,1754225433443,-201.82122837,0.00026779,2]
[377057047,1754225433452,-500.0,0.00026779,2]
[377057048,1754225433461,-409.68522204,0.00026779,2]
[377057049,1754225433470,-616.25045148,0.00026779,2]
[377057050,1754225433480,-500.0,0.00026779,2]
[377057051,1754225433489,-500.0,0.00026779,2]
[377057052,1754225433499,-500.0,0.00026779,2]
[377057053,1754225433509,-404.51981187,0.00026779,2]
[377057054,1754225433518,-500.0,0.00026779,2]
[377057055,1754225433527,-500.0,0.00026779,2]
[377057056,1754225433537,-500.0,0.00026779,2]
[377057057,1754225433547,-500.0,0.00026779,2]
[377057058,1754225433556,-500.0,0.00026779,2]
[377057059,1754225433566,-500.0,0.00026779,2]
[377057060,1754225433575,-64052.1210798,0.0002678,5]
[377057061,1754225433586,-233.172054,0.0002681,7]
[377057062,1754225433595,-151.0,0.0002681,7]
[377057063,1754225433605,-288.28042371,0.00026851,2]
[377057064,1754225433615,-1151.96857313,0.00026851,2]
[377057065,1754225433624,-520.93030448,0.00026851,2]
[377057066,1754225433633,-2081.63749672,0.00026851,2]
[377057067,1754225433643,-460.0,0.00026894,2]
[377057068,1754225433653,-271.57001,0.00026952,7]
[377057069,1754225433662,-1000.0,0.00027321,2]
[377057070,1754225433672,-1000.0,0.00027321,2]
[377057071,1754225433681,-1378.92,0.00027413,6]
[377057072,1754225433691,-560.0,0.00027442,2]
[377057073,1754225433700,-200.0,0.00027526,15]
[377057074,1754225433710,-200.0,0.00027526,15]
[377057075,1754225433719,-300.0,0.00027526,15]
[377057076,1754225433729,-2050.3,0.00027528,3]
[377057077,1754225433739,-1564.7,0.00027528,3]
[377057078,1754225433748,-151.965039,0.00027576,4]
[377057079,1754225433758,-782.36,0.00027704,3]
[377057080,1754225433768,-391.18,0.00027704,3]
[377057081,1754225433777,-155.0,0.00027785,3]
[377057082,1754225433787,-151.0,0.00027785,2]
[377057083,1754225433796,-1500.0,0.00027868,5]
[377057084,1754225433806,-500.0,0.00027868,5]
[377057085,1754225433816,-836.16135357,0.0002788,2]
[377057086,1754225433826,-151.0,0.00027925,3]
[377057087,1754225433835,-32214.4480507,0.00027935,2]
[377057088,1754225433845,-166.62077812,0.00027944,2]
[377057089,1754225433855,-389.3995752,0.00027945,2]
[377057090,1754225433864,-460.0,0.00027945,10]
[377057091,1754225433873,-463.18129463,0.00027945,10]
[377057092,1754225433883,-446.12109273,0.00027945,10]
[377057093,1754225437109,5000.0,0.00023062,2]
[377057117,1754225440885,-151.0,0.00024673,7]
[377057118,1754225440895,-2774.44783987,0.00026779,2]
[377057119,1754225440906,-22806.0,0.00026779,2]
[377057146,1754225443396,-1134.70122693,0.00026779,2]
[377057231,1754225446353,-3931.72291947,0.00024953,2]
[377057232,1754225446362,-460.95174316,0.00026698,2]
[377057233,1754225446372,-1114.38696905,0.00026779,2]
[377057235,1754225495060,984.27,0.00030137,120]
[377057237,1754225805179,4868.0,0.00030137,120]
[377057242,1754226141980,1000.0,0.00030137,120]
[377057243,1754226303019,734.79127891,0.00023062,2]
[377057244,1754226303046,575.61767128,0.00023062,2]
[377057245,1754226355090,-972.02,0.00023502,2]
[377057246,1754226355110,-705.87877928,0.0002376,2]
[377057247,1754226404092,-184.27139824,0.00023759,2]
[377057249,1754226548499,162.007882,0.00013699,2]
[377057250,1754226548711,162.007882,0.00022505,2]
[377057274,1754226632836,-202.073676,0.00023234,2]
[377057276,1754226632846,-189.35763739,0.00023659,2]
[377057278,1754226632855,-1200.0,0.00023759,2]
[377057280,1754226632865,-288.0,0.00023759,2]
[377057282,1754226632874,-300.0,0.00023759,2]
[377057284,1754226632884,-12750.53949522,0.0002376,2]
[377057286,1754226632893,-153.88034999,0.00024055,2]
[377057288,1754226632903,-160.0,0.00024292,2]
[377057290,1754226632913,-160.0,0.00024293,2]
[377057292,1754226632922,-200.0,0.00024309,10]
[377057294,1754226632932,-204.032767,0.00024309,10]
[377057295,1754226632941,-5530.2385083,0.00024309,2]
[377057296,1754226632950,-523.61099198,0.0002436,2]
[377057297,1754226632959,-500.0,0.00024373,2]
[377057298,1754226632969,-500.0,0.00024373,2]
[377057299,1754226632979,-251.18,0.00024414,2]
[377057301,1754226632988,-900.0,0.000246,2]
[377057302,1754226632998,-160.0,0.000247,2]
[377057303,1754226633007,-500.0,0.00024921,2]
[377057304,1754226633017,-200.0,0.00024947,15]
[377057305,1754226633027,-300.0,0.00024947,15]
[377057306,1754226633037,-260.0,0.00025248,2]
[377057307,1754226633049,-593.40187716,0.000254,10]
[377057308,1754226633058,-251.18,0.000254,7]
[377057309,1754226633068,-1000.0,0.00025411,2]
[377057310,1754226633079,-500.0,0.00025473,2]
[377057311,1754226633089,-500.0,0.00025473,2]
[377057312,1754226633098,-10000.0,0.00025561,2]
[377057313,1754226633108,-262.92,0.00025594,2]
[377057314,1754226633117,-1000.0,0.000256,3]
[377057315,1754226633126,-501.76956693,0.00025673,2]
[377057316,1754226633136,-178.12299723,0.00025673,2]
[377057317,1754226633146,-500.0,0.00025678,2]
[377057318,1754226633156,-420.0,0.00025772,2]
[377057319,1754226633166,-360.0,0.00025796,2]
[377057320,1754226633175,-500.0,0.00025873,2]
[377057321,1754226633185,-460.0,0.00026344,2]
[377057322,1754226633194,-251.18,0.00026386,7]
[377057323,1754226633203,-151.0,0.00026496,2]
[377057324,1754226633213,-151.0,0.00026496,2]
[377057325,1754226633222,-231.62108626,0.00026666,2]
[377057326,1754226633231,-160.0,0.00026666,2]
[377057327,1754226633241,-312.16666667,0.00026666,2]
[377057328,1754226633250,-160.0,0.00026778,2]
[377057329,1754226633260,-216.32054205,0.00026778,2]
[377057331,1754226633269,-215.12253551,0.00026778,2]
[377057332,1754226633279,-500.0,0.00026789,2]
[377057334,1754226633289,-280.0,0.00026892,2]
[377057336,1754226633299,-430.545078,0.00027234,2]
[377057339,1754226633308,-200.0,0.00027365,15]
[377057340,1754226633318,-200.0,0.00027365,15]
[377057342,1754226633327,-300.0,0.00027365,15]
[377057345,1754226633337,-251.18,0.00027372,7]
[377057346,1754226633347,-523.17119575,0.00027373,2]
[377057348,1754226633356,-500.0,0.00027373,2]
[377057350,1754226633366,-500.0,0.00027373,2]
[377057352,1754226633375,-347.13850684,0.00027373,2]
[377057354,1754226633385,-500.0,0.00027373,2]
[377057356,1754226633394,-500.0,0.00027373,2]
[377057358,1754226633404,-500.0,0.00027373,2]
[377057360,1754226633413,-500.0,0.00027373,2]
[377057362,1754226633422,-504.94679219,0.00027373,2]
[377057364,1754226633432,-500.0,0.00027373,2]
[377057366,1754226633442,-501.29950608,0.00027373,2]
[377057368,1754226633451,-500.0,0.00027373,2]
[377057370,1754226633461,-500.0,0.00027373,2]
[377057372,1754226633470,-500.0,0.00027373,2]
[377057374,1754226633479,-502.8645734,0.00027373,2]
[377057376,1754226633489,-500.0,0.00027373,2]
[377057378,1754226633498,-151.0,0.00027378,7]
[377057380,1754226633508,-501.09472158,0.00027378,2]
[377057382,1754226633517,-470.69201939,0.00027378,2]
[377057384,1754226633527,-500.0,0.00027378,2]
[377057386,1754226633537,-500.0,0.00027378,2]
[377057388,1754226633548,-500.0,0.00027378,2]
[377057390,1754226633558,-500.0,0.00027378,2]
[377057392,1754226633568,-500.0,0.00027378,2]
[377057394,1754226633578,-500.0,0.00027378,2]
[377057396,1754226633587,-500.0,0.00027378,2]
[377057398,1754226633597,-500.0,0.00027378,2]
[377057400,1754226633606,-500.0,0.00027378,2]
[377057402,1754226633616,-500.0,0.00027378,2]
[377057404,1754226633625,-500.0,0.00027378,2]
[377057406,1754226633634,-500.0,0.00027378,2]
[377057408,1754226633644,-648.35526899,0.00027378,2]
[377057410,1754226633653,-500.0,0.00027378,2]
[377057412,1754226633663,-500.0,0.00027378,2]
[377057414,1754226633673,-500.0,0.00027378,2]
[377057415,1754226633682,-500.0,0.00027378,2]
[377057416,1754226633697,-500.0,0.00027378,2]
[377057417,1754226633707,-350.0,0.00027378,2]
[377057418,1754226633717,-500.0,0.00027378,2]
[377057419,1754226633727,-500.0,0.00027378,2]
[377057420,1754226633737,-500.0,0.00027378,2]
[377057421,1754226633747,-500.0,0.00027378,2]
[377057422,1754226633757,-500.0,0.00027378,2]
[377057423,1754226633767,-500.0,0.00027378,2]
[377057424,1754226633778,-500.0,0.00027378,2]
[377057425,1754226633787,-500.0,0.00027378,2]
[377057426,1754226633798,-500.0,0.00027378,2]
[377057427,1754226633807,-500.0,0.00027378,2]
[377057428,1754226633817,-500.0,0.00027378,2]
[377057429,1754226633827,-500.0,0.00027378,2]
[377057430,1754226633837,-500.0,0.00027378,2]
[377057431,1754226633847,-500.0,0.00027378,2]
[377057432,1754226633857,-500.0,0.00027378,2]
[377057433,1754226633867,-500.0,0.00027378,2]
[377057434,1754226633877,-500.0,0.00027378,2]
[377057435,1754226633887,-500.0,0.00027378,2]
[377057436,1754226633897,-499.99999999,0.00027378,2]
[377057437,1754226633907,-500.0,0.00027378,2]
[377057438,1754226633917,-26121.4951261,0.00027379,2]
[377057439,1754226633927,-151.0,0.00027389,7]
[377057440,1754226633936,-173.200277,0.00027389,7]
[377057441,1754226633946,-151.0,0.00027389,7]
[377057442,1754226633955,-151.0,0.00027389,7]
[377057443,1754226633965,-762.87300579,0.00027675,2]
[377057444,1754226633974,-762.87300577,0.00027718,2]
[377057445,1754226633984,-1135.38,0.00027752,3]
[377057446,1754226633993,-762.87300577,0.0002776,2]
[377057447,1754226634003,-1337.23,0.0002776,2]
[377057448,1754226634012,-151.0,0.00027761,7]
[377057449,1754226634022,-151.0,0.00027762,7]
[377057450,1754226634032,-199.498351,0.00027762,7]
[377057451,1754226634042,-151.0,0.00027762,7]
[377057452,1754226634052,-270.605208,0.00027762,7]
[377057453,1754226634061,-26121.4951261,0.00027763,2]